Cogmind - Beta 13 @@@ ROGUE MODE // 2024.04.01 @ 18:58:42 Player: Sooty Result: Destroyed self via exploding Z-Power Performance ------------- Evolutions (1) 500 Regions Visited (6) 1200 Robots Destroyed (28) 140 Value Destroyed (541) 541 Prototype IDs (1) 20 Alien Tech Used (0) 0 Bonus (684) 684 TOTAL SCORE: 3085 Bonus ------- Follower Combat Kills 84 Met Imprinter 300 Was Imprinted 300 Cogmind --------- Core Integrity 0/400 Matter 300/300 Energy 100/100 System Corruption 0% Temperature Cool (17) Movement Rolling (105) Ox1 Location -7/Deep Caves Parts ------- > --- POWER (1) -------- (None) > --- PROPULSION (2) --- Armored Wheel > --- UTILITY (4) ------ Large Storage Unit Signal Interpreter Improved Targeting Computer > --- WEAPON (2) ------- Small Laser > --- INVENTORY (15) --- Wheel Cooling System Small Battery (100) Light Armor Plating Hacking Drone Bay (1/1) EM Pulse Gun Heavy EM Pulse Gun Peak State ------------ > --- POWER ------------ Light Ion Engine > --- PROPULSION ------- Wheel Armored Wheel > --- UTILITY ---------- Large Storage Unit Signal Interpreter Improved Targeting Computer Hacking Drone Bay > --- WEAPON ----------- EM Pulse Gun EM Pulse Gun > --- INVENTORY -------- Wheel Cooling System Small Battery Small Battery Light Armor Plating Heavy EM Pulse Gun Small Laser Particle Cannon [Rating: 20] Favorites ----------- Power Light Ion Engine Engine Light Ion Engine Propulsion Wheel Wheel Wheel Utility Improved Targeting Computer Device Hacking Drone Bay Storage Large Storage Unit Processor Improved Targeting Computer Protection Light Armor Plating Weapon EM Pulse Gun Energy Gun EM Pulse Gun Energy Cannon Light EM Pulse Cannon Build | -11 -10 -10 -9 -9 -7 -7 ------- Run | Yrd Mat Min Mat Min Zio Dee Slots Evolved 2 | . . . 2 . . . Power . | . . . . . . . Propulsion . | . . . . . . . Utility 2 | . . . 2 . . . Weapon . | . . . . . . . Parts Attached 31 | 8 6 . 12 . 2 3 Power 4 | 1 1 . 2 . . . Engine 4 | 1 1 . 2 . . . Core . | . . . . . . . Reactor . | . . . . . . . Propulsion 8 | 4 3 . 1 . . . Treads . | . . . . . . . Leg . | . . . . . . . Wheel 8 | 4 3 . 1 . . . Hover . | . . . . . . . Flight . | . . . . . . . Utility 9 | 1 . . 5 . 2 1 Device 1 | . . . . . 1 . Storage 5 | 1 . . 3 . . 1 Processor 2 | . . . 1 . 1 . Hackware . | . . . . . . . Protection 1 | . . . 1 . . . Artifact . | . . . . . . . Weapon 10 | 2 2 . 4 . . 2 Energy Gun 7 | 2 2 . 2 . . 1 Energy Cannon 3 | . . . 2 . . 1 Ballistic Gun . | . . . . . . . Ballistic Cannon . | . . . . . . . Launcher . | . . . . . . . Special Weapon . | . . . . . . . Impact Weapon . | . . . . . . . Slashing Weapon . | . . . . . . . Piercing Weapon . | . . . . . . . Special Melee Weapon . | . . . . . . . Unidentified Prototypes 1 | . . . . . 1 . Parts Lost 7 | . 2 . . . . 5 Power 1 | . . . . . . 1 Propulsion 2 | . 1 . . . . 1 Utility 1 | . . . . . . 1 Weapon 3 | . 1 . . . . 2 Highest Loss Streak 4 | . 1 . . . . 4 To Critical Strikes . | . . . . . . . Average Slot Usage (%) 93 | . 83 85 91 100 100 99 Engine 11 | . 14 14 11 11 11 11 Wheel 23 | . 26 28 22 22 22 21 Device 3 | . . . . . 6 6 Storage 16 | . 14 14 20 22 15 15 Processor 12 | . . . 9 11 20 22 Protection 1 | . . . 4 11 1 . Energy Gun 20 | . 28 28 8 22 22 22 Energy Cannon 2 | . . . 13 . . . Naked Turns . | . . . . . . . Heaviest Build 31 | 12 14 14 31 31 31 28 Greatest Support 32 | 32 32 20 22 22 22 22 Greatest Overweight (x) 2 | . . . 1 1 1 2 Average Overweight (x) . | . . . . 1 1 1 Largest Inventory Capacity 15 | 8 8 8 15 15 15 15 Average Capacity 11 | 7 8 8 8 15 15 15 Most Carried 9 | 4 6 5 8 7 9 8 Average Carried 6 | 1 4 5 6 6 7 7 Final Capacity 15 | 8 8 8 15 15 15 15 Final Carried 8 | 3 5 5 6 7 8 7 Class Distribution -------------------- 91% | Mutant 8% | Scavenger-Mutant Dominant Class ---------------- Mutant | -10/Materials Mutant | -10/Mines Mutant | -9/Materials Mutant | -9/Mines Mutant | -7/Zion Scavenger-Mutant | -7/Deep Caves Resources | -11 -10 -10 -9 -9 -7 -7 ----------- Run | Yrd Mat Min Mat Min Zio Dee Matter Collected 485 | 280 30 30 110 10 10 15 Remotely . | . . . . . . . Salvage Created 1079 | 100 389 49 459 . . 82 Parts 70 | 5 38 2 25 . . . Haulers Intercepted . | . . . . . . . Recyclers Shooed . | . . . . . . . Parts Field Recycled . | . . . . . . . Retrieved Matter . | . . . . . . . Parts Self-Destructed . | . . . . . . . Prevented . | . . . . . . . Kills | -11 -10 -10 -9 -9 -7 -7 ------- Run | Yrd Mat Min Mat Min Zio Dee Combat Hostiles Destroyed 18 | . 9 . 6 . . 3 Guns 12 | . 9 . . . . 3 Cannons 6 | . . . 6 . . . Classes Destroyed 10 | 1 5 1 2 . . 1 Worker 2 | . . 2 . . . . Builder 5 | . 3 . 2 . . . Tunneler 1 | . 1 . . . . . Recycler 1 | 1 . . . . . . Operator 1 | . . . 1 . . . Watcher 3 | . 1 . 2 . . . Swarmer 5 | . 3 . 2 . . . Grunt 9 | . 6 . 3 . . . Sentry 1 | . . . 1 . . . Assembled 3 | . . . . . . 3 Best Kill Streak 7 | 1 7 2 3 . . 3 Combat Bots Only 5 | . 5 . 3 . . 3 Max Kills in Single Turn 1 | 1 1 1 1 . . 1 Gunslinging . | . . . . . . . Exploded . | . . . . . . . Melee . | . . . . . . . Uniques/NPCs Destroyed . | . . . . . . . Combat | -11 -10 -10 -9 -9 -7 -7 -------- Run | Yrd Mat Min Mat Min Zio Dee Hostile Shots Fired 86 | . 36 . 30 . . 20 Missed 24 | . 6 . 10 . . 8 Damage Taken 1386 | . 358 . 253 . . 775 Core 636 | . 129 . 43 . . 464 Absorbed by Shields . | . . . . . . . Core Remaining (%) 74 | 100 . 48 . . . . Volleys Fired 72 | 2 29 4 27 . . 10 Largest 2 | 2 2 2 2 . . 2 Hottest 112 | 80 80 80 112 . . 108 Shots Fired 143 | 4 57 8 54 . . 20 Gun 104 | 4 57 8 16 . . 19 Cannon 39 | . . . 38 . . 1 Launcher . | . . . . . . . Special . | . . . . . . . Kinetic . | . . . . . . . Thermal 64 | 4 55 . . . . 5 Explosive . | . . . . . . . Electromagnetic 79 | . 2 8 54 . . 15 Robot Hit Streak 19 | 3 14 12 19 . . 4 Robot Miss Streak 3 | . 1 1 3 . . 2 Penetration Max . | . . . . . . . Secondary Targets 1 | . 1 . . . . . Max Gunslinging Chain 1 | . 1 . . . . . Shots Hit Robots 100 | 3 43 6 37 . . 11 Core Hits 48 | 2 24 2 13 . . 7 Critical Kills . | . . . . . . . Critical Parts Destroyed . | . . . . . . . Critical Strikes . | . . . . . . . Melee Attacks . | . . . . . . . Impact . | . . . . . . . Slashing . | . . . . . . . Piercing . | . . . . . . . Sneak Attacks . | . . . . . . . Combat Hostiles . | . . . . . . . Follow-up Attacks . | . . . . . . . Damage Inflicted 1583 | 32 488 79 809 . . 175 Guns 918 | 32 488 79 191 . . 128 Cannons 559 | . . . 559 . . . Explosions 106 | . . . 59 . . 47 Melee . | . . . . . . . Ramming . | . . . . . . . Kinetic . | . . . . . . . Thermal 622 | 32 473 . 59 . . 58 Explosive . | . . . . . . . Electromagnetic 961 | . 15 79 750 . . 117 Impact . | . . . . . . . Slashing . | . . . . . . . Piercing . | . . . . . . . Highest Corruption . | . . . . . . . Average Corruption . | . . . . . . . Corruption Purged . | . . . . . . . Corruption Blocked . | . . . . . . . Overload Shots . | . . . . . . . Overflow Damage 177 | . . . 29 . . 148 Projectiles 29 | . . . 29 . . . Explosions 148 | . . . . . . 148 Melee . | . . . . . . . Knockbacks . | . . . . . . . Impact . | . . . . . . . Kinetic . | . . . . . . . Secondary . | . . . . . . . Self-Inflicted Damage 524 | . . . 11 . . 513 Shots 3 | . . . 1 . . 2 Rammed . | . . . . . . . Targets Rammed . | . . . . . . . Kicked . | . . . . . . . Crushed . | . . . . . . . Highest Temperature 218 | 36 218 72 212 . . 126 Average Temperature 63 | 20 68 37 66 . . 53 Received Heat Transfer 412 | . 186 . 81 . . 145 Siege Activations . | . . . . . . . Robots Corrupted . | . . . . . . . Combat Hostiles . | . . . . . . . Parts Fried 3 | . . . 3 . . . Impact Corruptions . | . . . . . . . Robots Melted . | . . . . . . . Combat Hostiles . | . . . . . . . Parts Melted 2 | . 1 . 1 . . . Heat Transferred 1231 | 75 1050 . 100 . . 6 Parts Sabotaged . | . . . . . . . Parts Stolen . | . . . . . . . Parts Stripped . | . . . . . . . Power Chain Reactions 2 | . . . 1 . . 1 Alert | -11 -10 -10 -9 -9 -7 -7 ------- Run | Yrd Mat Min Mat Min Zio Dee Peak Influence 444 | 5 260 111 444 172 . . Initial 172 | . 3 101 42 172 . . Average 166 | 1 119 110 255 172 . . Maximum Alert Level 2 | . 1 . 2 . . . Low Security (%) 64 | 100 70 100 36 100 . . Level 1 24 | . 29 . 38 . . . Level 2 10 | . . . 25 . . . Level 3 . | . . . . . . . Level 4 . | . . . . . . . Level 5 . | . . . . . . . High Security . | . . . . . . . Max Security . | . . . . . . . Squads Dispatched 3 | . 2 . 1 . . . Investigation 1 | . 1 . . . . . Extermination . | . . . . . . . Reinforcement 2 | . 1 . 1 . . . Assault . | . . . . . . . Garrison . | . . . . . . . Intercept . | . . . . . . . Searches Triggered . | . . . . . . . Construction Impeded . | . . . . . . . Haulers Reinforced . | . . . . . . . Active Scanning Responses . | . . . . . . . Cargo Convoy Interrupts . | . . . . . . . Stealth | -11 -10 -10 -9 -9 -7 -7 --------- Run | Yrd Mat Min Mat Min Zio Dee Distress Signals 4 | . 3 . 1 . . . Communications Jammed . | . . . . . . . Distress Signals . | . . . . . . . Times Spotted 35 | . 14 . 17 . . 4 Peak Tracking Total 8 | . 8 . 6 . . 3 Tactical Retreats 2 | . 1 . 1 . . . Traps | -11 -10 -10 -9 -9 -7 -7 ------- Run | Yrd Mat Min Mat Min Zio Dee Traps Triggered 1 | . 1 . . . . . Indirectly . | . . . . . . . Trap Hack Attempts . | . . . . . . . Triggered . | . . . . . . . Disarmed . | . . . . . . . Reprogrammed . | . . . . . . . Reused . | . . . . . . . Traps Extracted . | . . . . . . . Installed . | . . . . . . . Triggered . | . . . . . . . Machines | -11 -10 -10 -9 -9 -7 -7 ---------- Run | Yrd Mat Min Mat Min Zio Dee Machines Disabled 3 | . . . 1 . . 2 Max in Single Turn 1 | . . . 1 . . 1 Machines Repaired . | . . . . . . . Machines Dismantled . | . . . . . . . Machines Sabotaged . | . . . . . . . Overloaded Fab Kills . | . . . . . . . Hacking | -11 -10 -10 -9 -9 -7 -7 --------- Run | Yrd Mat Min Mat Min Zio Dee Machines Accessed 1 | . 1 . . . . . Terminals . | . . . . . . . Fabricators . | . . . . . . . Repair Stations . | . . . . . . . Recycling Units 1 | . 1 . . . . . Scanalyzers . | . . . . . . . Garrison Access . | . . . . . . . Total Hacks 2 | . 2 . . . . . Successful 1 | . 1 . . . . . Failed 1 | . 1 . . . . . Catastrophic . | . . . . . . . Database Lockouts . | . . . . . . . Manual 5 | . 1 . . . 4 . Terminals . | . . . . . . . Fabricators . | . . . . . . . Repair Stations . | . . . . . . . Recycling Units 2 | . 2 . . . . . Scanalyzers . | . . . . . . . Garrison Access . | . . . . . . . Terminal Hacks . | . . . . . . . Fabricator Hacks . | . . . . . . . Repair Station Hacks . | . . . . . . . Recycling Unit Hacks 1 | . 1 . . . . . Report Inventory 1 | . 1 . . . . . Scanalyzer . | . . . . . . . Garrison Access Hacks . | . . . . . . . Unauthorized Hacks . | . . . . . . . Terminals . | . . . . . . . Fabricators . | . . . . . . . Repair Stations . | . . . . . . . Recycling Units . | . . . . . . . Scanalyzers . | . . . . . . . Garrison Access . | . . . . . . . Data Cores Recovered . | . . . . . . . Used . | . . . . . . . Hacking Detections 1 | . 1 . . . . . Full Trace Events . | . . . . . . . Feedback Events . | . . . . . . . Feedback Blocked . | . . . . . . . Robot Schematics Acquired . | . . . . . . . Robots Built . | . . . . . . . Authchips . | . . . . . . . Time . | . . . . . . . Total Robot Build Rating . | . . . . . . . Part Schematics Acquired . | . . . . . . . Parts Built . | . . . . . . . Authchips . | . . . . . . . Time . | . . . . . . . Total Part Build Rating . | . . . . . . . Parts Repaired . | . . . . . . . Time . | . . . . . . . Parts Recycled . | . . . . . . . Recycled Matter . | . . . . . . . Retrieved Matter . | . . . . . . . Retrieved Components . | . . . . . . . Parts Scanalyzed . | . . . . . . . Part Schematics Acquired . | . . . . . . . Parts Damaged . | . . . . . . . Bothacking | -11 -10 -10 -9 -9 -7 -7 ------------ Run | Yrd Mat Min Mat Min Zio Dee Used RIF Installer . | . . . . . . . Robots Hacked . | . . . . . . . Non-combat . | . . . . . . . Combat . | . . . . . . . Robot Hacks Applied . | . . . . . . . Relay Couplers Released . | . . . . . . . Fabnet Peak Effective % . | . . . . . . . Robots Rewired . | . . . . . . . Allies Hacked . | . . . . . . . Hacks Repelled . | . . . . . . . Allies | -11 -10 -10 -9 -9 -7 -7 -------- Run | Yrd Mat Min Mat Min Zio Dee Total Allies 5 | . . 1 . . 4 . Largest Group 4 | . . 1 1 . 4 . Highest-Rated Group 152 | . . 31 31 . 152 . Highest-Rated Ally 39 | . . 31 31 . 39 . Total Orders . | . . . . . . . Ally Attacks 14 | . . . 14 . . . Total Damage 146 | . . . 146 . . . Kills 4 | . . . 4 . . . Allies Corrupted . | . . . . . . . Allies Melted . | . . . . . . . Intel | -11 -10 -10 -9 -9 -7 -7 ------- Run | Yrd Mat Min Mat Min Zio Dee Robot Analysis Total . | . . . . . . . Derelict Logs Recovered 4 | . . 1 . 1 2 . Drone Launches . | . . . . . . . Drone Recoveries . | . . . . . . . Exploration | -11 -10 -10 -9 -9 -7 -7 ------------- Run | Yrd Mat Min Mat Min Zio Dee Turns Passed 1498 | 56 224 150 316 11 567 174 Spaces Moved 1257 | 41 121 167 236 11 541 140 Core 5 | 5 . . . . . . Treads . | . . . . . . . Legs . | . . . . . . . Wheels 1252 | 36 121 167 236 11 541 140 Hover . | . . . . . . . Flight . | . . . . . . . Fastest Speed 50 | 50 80 80 80 100 100 100 Average Speed 92 | 78 85 80 84 100 100 101 Slowest Speed 120 | 100 100 80 100 100 100 120 Overloaded Moves . | . . . . . . . Propulsion Burnouts . | . . . . . . . Robots Hopped . | . . . . . . . Cave-ins Triggered . | . . . . . . . Exploration Rate (%) 29 | 4 26 50 25 6 69 27 Regions Visited 6 Branch Regions 4 Pre-discovered Areas 3 | . . . . . 3 . Known Exits Taken 1 | . . . . . 1 . Unknown Exits Taken 5 | 1 1 1 1 1 . . Scrap Searched 3 | . . 1 . 1 1 . Spaces Dug . | . . . . . . . Terrain Destroyed 11 | . . . 3 . . 8 Melee . | . . . . . . . Projectile . | . . . . . . . AOE 11 | . . . 3 . . 8 Terrain Rammed . | . . . . . . . Walls Destroyed . | . . . . . . . Machines Disabled . | . . . . . . . Actions | -11 -10 -10 -9 -9 -7 -7 --------- Run | Yrd Mat Min Mat Min Zio Dee Total 1446 | 59 184 175 297 11 566 154 Wait 43 | . 15 5 3 . 20 . Move 1251 | 40 120 166 235 10 540 140 Hop . | . . . . . . . Pick Up 32 | 9 9 . 12 1 1 . Fast Attach . | . . . . . . . Attach 14 | 6 2 . 3 . 1 2 Detach 2 | . . . . . 1 1 Swap 17 | 2 4 . 9 . 1 1 Drop 13 | . 5 . 8 . . . Fire 72 | 2 29 4 27 . . 10 Melee . | . . . . . . . Ram . | . . . . . . . Kick . | . . . . . . . Crush . | . . . . . . . Escape Stasis . | . . . . . . . Rewire 2 | . . . . . 2 . Trap . | . . . . . . . Miscellaneous . | . . . . . . . Route ------- -11/Scrapyard -10/Materials -10/Mines -9/Materials -9/Mines -7/Zion (discovered 2 exits: *Dee / *Pro) -7/Deep Caves History --------- Turn | Location | Event 5 | -11/Scrapyard | Discovered new exit (range 16) 57 | -11/Scrapyard | Entered Materials 238 | -10/Materials | Discovered new exit (range 15) 249 | -10/Materials | Core integrity fell below 50% 281 | -10/Materials | Entered Mines 305 | -10/Mines | Build established: Mutant 415 | -10/Mines | Discovered new exit (range 6) 418 | -10/Mines | Received a Mining Laser from a helpful Derelict 420 | -10/Mines | Learned Materials security intel 431 | -10/Mines | Entered Materials 431 | -9/Materials | Accompanied by 1 ally 431 | -9/Materials | Evolved 2 slots: Utility x2 720 | -9/Materials | Discovered new exit (range 14) 747 | -9/Materials | Entered Mines 748 | -9/Mines | A Derelict revealed a hidden shortcut to a safe place 756 | -9/Mines | Met a Derelict bent on vengeance 758 | -9/Mines | Entered Zion 779 | -7/Zion | Given the Hacking Drone Bay 781 | -7/Zion | Found Prototype Device 807 | -7/Zion | Acquired unknown access codes intercepted by a Zionite 832 | -7/Zion | Discovered new exit (range 14) 859 | -7/Zion | Identified exit to Proximity Caves 967 | -7/Zion | Learned location of Armory (-4) 975 | -7/Zion | Learned location of Storage (-7) 985 | -7/Zion | Learned location of Warlord (-4) 995 | -7/Zion | Identified Hacking Drone Bay 1081 | -7/Zion | Learned Factory terminal intel 1133 | -7/Zion | Imprinted 1135 | -7/Zion | Declared Zion's savior 1259 | -7/Zion | Opened final containment barrier to the Deep Caves 1303 | -7/Zion | Discovered new exit (range 3) 1303 | -7/Zion | Saw the warning signs outside the Deep Caves entrance 1304 | -7/Zion | Identified exit to Deep Caves 1325 | -7/Zion | Entered Deep Caves 1325 | -7/Deep Caves | Accompanied by 4 allies 1487 | -7/Deep Caves | Attacked by Z-Imprinter 1490 | -7/Deep Caves | Z-Facility disabled 1499 | -7/Deep Caves | Destroyed self via exploding Z-Power Last Messages --------------- 01356_ as-24910 destroyed. 01365_ EM Pulse Gun destroyed. 01369_ as-21430 destroyed. 01372_ Acquired 15 matter. 01408_ Chain reaction triggered in Lgt. Nuclear Core. 01408_ Surveybot 24 destroyed. 01408_ Survey Way Station disabled. 01475_ NEW_ZION: Z-Facility proximity alert. 01487_ Wheel destroyed. Z-Imprinter: GET AWAY FROM HERE! I've worked too hard for our future just to have you ruin everything! 01490_ Lgt. Ion Engine destroyed. 01490_ Z-Facility disabled. 01499_ Z-Power explodes. 01499_ Sml. Battery destroyed. 01499_ Destroyed Sml. Battery. 01499_ Particle Cannon destroyed. 01499_ Destroyed Particle Cannon. Map ----- +----------------------------------------------------+ | ????????????????????????????? ##?### ##?????# | | ???????????????????????????? ## # #???### | | ??????????????????????????? ##### | | ??????????????????????????? | | ??????????????????????????? | | ??????????????????????????? | | ???????????????????????????? | | ????????????????????????????""" | | ???????????????????????????"""" | | ??????????????????????????""""" | | ??????????????????????????""""" | | ??????????????????????????"" | | ??????????????????????????""""" | | ?????????????????????????"""""" | | ????????????????????????""""""" | | ???????????????????????"""""""" | | ???????????????????????""" " " | | ???????????????????????""""o o | | ???????????????????????""" | | ?????????????????????""""""o | | ????????????????????""""""" | | ????????????????????"""""""" | | ???????????????????""""""""""""o | | ??????????????????"""""" I | | ??????????????????"""""" | | ??????????????????""""" @ | | ??????????????????"""""" ?? | | ?????????????????? """"" ??? | | ??????????????????? """" ??? | | ????????????????????"""" ??? | | ????????????????????"""" ???? | | ????????????????????"""" ???? | | ??????????????????????"""""""""o ????? | | ??????????????????????""""""" ????? | | ?????????????????????? ?????? | | ??????????????????????? ???????? | | ???????????????????????? ??? ?????????? | | ??????????????????????????????? ????????????? | | ??????????????????????????????? ??????????????? | | ?????????????????????????????????????????????????? | | ?????????????????????????????????????????????????? | | ?????????????????????????????????????????????????? | | ?????????????????????????????????????????????????? | | ?????????????????????????????????????????????????? | | ?????????????????????????????????????????????????? | | ?????????????????????????????????????????????????? | | | | | | | | | +----------------------------------------------------+ Best States ------------- Heat Dissipation 28 Energy Generation 10 Energy Capacity 350 Matter Stores 300 Matter Capacity 300 Sight Range 16 Terrain Scan Density 10 Armor Coverage 150 Evasion (%) 44 Targeting Accuracy 6 Item Schematics ----------------- None Robot Schematics ------------------ None Fabricated ------------ Nothing Alien Tech Used ----------------- None Achievements -------------- Adventurer Signs Are For Wimps Challenges ------------ None Game ------ Seed HelicalWeaponHammer Manual? 0 Play Time 00:29:47 Cumulative 6.5 hours Start 2024.04.01 @ 18:31:45 End 2024.04.01 @ 18:58:42 Sessions 1 Manual Loads 0 Difficulty Rogue Special Mode None Game No. 8 Rogue 8 Adventurer 0 Explorer 0 Win Type - Total 0 Types 0/0/0/0/0/0/0/0/0 Lore% 7 Gallery% 13 Achievement% 13 Wizard Run 0 Options --------- Layout 1 ASCII 0 Keyboard 0 Movement Mouse Keybinds 0 Fullscreen 1 Font 24/Terminus Map View 50x35 Zoom Use 0% Tactical HUD 1 Map Filters NONE Filters NONE Steam 1 RUN: 92d07653-53dd-447b-ad57-beb8711adb60